bitfinex-derivatives/quotes_BTCF0:USTF0_20250918
["timestamp","ask_amount","ask_price","bid_price","bid_amount"]
[1758210201278,0.38375,117520.0,117510.0,0.10419162]
[1758210201576,0.80636236,117520.0,117510.0,0.52680398]
[1758210201781,0.80636236,117520.0,117510.0,1.30476398]
[1758210204284,0.80636236,117520.0,117510.0,0.52680398]
[1758210205283,1.22897472,117520.0,117510.0,1.30440398]
[1758210206581,1.22897472,117520.0,117510.0,0.10419162]
[1758210206780,1.22897472,117520.0,117510.0,0.52680398]
[1758210206980,1.22897472,117520.0,117510.0,0.88195162]
[1758210207179,1.22897472,117520.0,117510.0,0.52680398]
[1758210207679,1.22897472,117520.0,117510.0,1.30484398]
[1758210208283,0.38375,117520.0,117510.0,1.30484398]
[1758210208482,0.80636236,117520.0,117510.0,1.30484398]
[1758210209680,0.80636236,117520.0,117510.0,0.10419162]
[1758210209878,0.66533266,117520.0,117510.0,0.10419162]
[1758210210182,0.66533266,117520.0,117510.0,1.16381428]
[1758210210576,0.66533266,117520.0,117510.0,0.88219162]
[1758210211374,0.66533266,117520.0,117510.0,0.88235162]
[1758210211575,0.66467266,117530.0,117520.0,0.00758]
[1758210211775,0.66447266,117530.0,117520.0,0.32481266]
[1758210212280,0.30367266,117530.0,117520.0,0.32481266]
[1758210212882,0.02209,117530.0,117520.0,0.32481266]
[1758210213084,0.30367266,117530.0,117520.0,0.32481266]
[1758210214086,0.02309,117530.0,117520.0,0.32481266]
[1758210214281,0.00104,117530.0,117520.0,0.60639532]
[1758210214680,0.02309,117530.0,117520.0,0.32481266]
[1758210215282,0.02309,117530.0,117520.0,0.68561266]
[1758210215684,0.00104,117530.0,117520.0,0.68561266]
[1758210215886,0.02309,117530.0,117520.0,0.68561266]
[1758210216382,0.00104,117530.0,117520.0,0.68561266]
[1758210216782,0.02309,117530.0,117520.0,0.68561266]
[1758210218286,0.02309,117530.0,117520.0,0.40403]
[1758210218491,0.02309,117530.0,117520.0,0.68561266]
[1758210219990,0.30467266,117530.0,117520.0,0.68561266]
[1758210220593,0.30467266,117530.0,117520.0,0.03565]
[1758210220790,0.02309,117530.0,117520.0,0.81349]
[1758210220991,0.30467266,117530.0,117520.0,0.81349]
[1758210228306,0.02309,117530.0,117520.0,0.81349]
[1758210228609,0.30467266,117530.0,117520.0,0.81349]
[1758210230005,0.02309,117530.0,117520.0,1.09507266]
[1758210230206,0.30467266,117530.0,117520.0,1.09507266]
[1758210230403,0.02309,117530.0,117520.0,1.09507266]
[1758210230610,0.30467266,117530.0,117520.0,1.09507266]
[1758210231009,0.30467266,117530.0,117520.0,0.81349]
[1758210232107,0.30467266,117530.0,117520.0,0.03565]
[1758210232306,0.30467266,117530.0,117520.0,0.81353]
[1758210234410,0.30467266,117530.0,117520.0,0.03565]
[1758210234707,0.30467266,117530.0,117520.0,0.81345]
[1758210235203,0.30467266,117530.0,117520.0,0.03565]
[1758210235404,0.30467266,117530.0,117510.0,0.25077162]
[1758210235405,1.20732532,117530.0,117510.0,0.25077162]
[1758210235611,0.95574532,117520.0,117510.0,0.06737162]
[1758210235902,0.03178,117510.0,117500.0,0.02158]
[1758210236104,0.67416266,117510.0,117500.0,0.79982]
[1758210237010,0.67416266,117510.0,117500.0,0.81264]
[1758210237209,0.67416266,117510.0,117500.0,0.81464]
[1758210238308,0.67416266,117510.0,117500.0,0.81564]
[1758210239609,0.66389266,117510.0,117500.0,0.81564]
[1758210242913,0.66389266,117510.0,117500.0,0.8358508]
[1758210243108,0.66389266,117510.0,117500.0,1.11743346]
[1758210243910,0.02151,117510.0,117500.0,1.11743346]
[1758210244106,0.02151,117510.0,117500.0,1.64901612]
[1758210244409,0.38245,117520.0,117510.0,0.03589]
[1758210244611,0.38225,117520.0,117510.0,0.31747266]
[1758210245808,0.66383266,117520.0,117510.0,0.31747266]
[1758210246614,0.66383266,117520.0,117510.0,0.31847266]
[1758210247010,0.66383266,117520.0,117510.0,0.81481]
[1758210247407,0.66383266,117520.0,117510.0,1.09639266]
[1758210249117,0.66383266,117520.0,117510.0,0.88433185]
[1758210250117,0.38225,117520.0,117510.0,0.88433185]
[1758210250313,0.66383266,117520.0,117510.0,0.88433185]
[1758210255218,0.66383266,117520.0,117510.0,0.10641185]
[1758210255419,0.66383266,117520.0,117510.0,0.88421185]
[1758210257013,0.66383266,117520.0,117510.0,1.16579451]
[1758210257522,0.66383266,117520.0,117510.0,0.88421185]
[1758210260823,0.66383266,117520.0,117510.0,0.88369185]
[1758210261119,0.94541532,117520.0,117510.0,0.88369185]
[1758210262022,0.94541532,117520.0,117510.0,0.10641185]
[1758210262322,0.95568532,117520.0,117510.0,0.87067185]
[1758210262815,1.48726798,117520.0,117510.0,0.001]
[1758210263420,1.20568532,117520.0,117510.0,0.001]
[1758210264425,1.48726798,117520.0,117510.0,0.001]
[1758210264823,2.26462798,117520.0,117510.0,0.001]
[1758210265524,1.5114128,117520.0,117510.0,0.001]
[1758210265725,2.2887728,117520.0,117510.0,0.001]
[1758210265920,1.5114128,117520.0,117510.0,0.001]
[1758210266518,2.2890128,117520.0,117510.0,0.001]
[1758210267226,2.2889728,117520.0,117510.0,0.001]
[1758210270531,2.2889328,117520.0,117510.0,0.001]
[1758210271231,1.5114128,117520.0,117510.0,0.001]
[1758210271640,2.2887728,117520.0,117510.0,0.001]
[1758210271825,2.7117479,117520.0,117510.0,0.001]
[1758210272024,1.44402482,117520.0,117510.0,0.001]
[1758210272334,2.7117479,117520.0,117510.0,0.001]
[1758210275634,1.44402482,117520.0,117510.0,0.001]
[1758210275826,2.7117479,117520.0,117510.0,0.001]
[1758210276135,2.7115879,117520.0,117510.0,0.001]
[1758210276836,1.9343879,117520.0,117510.0,0.001]
[1758210277041,2.7116679,117520.0,117510.0,0.001]
[1758210278238,1.9343879,117520.0,117510.0,0.001]
[1758210278738,2.7115479,117520.0,117510.0,0.001]
[1758210279439,2.4615479,117520.0,117510.0,0.001]
[1758210279729,2.4615079,117520.0,117510.0,0.001]
[1758210280834,2.8223079,117520.0,117510.0,0.001]
[1758210290235,2.8218679,117520.0,117510.0,0.001]
[1758210297448,2.82188286,117520.0,117510.0,0.001]
[1758210298947,1.55415978,117520.0,117510.0,0.001]
[1758210299248,2.0385085,117520.0,117510.0,0.02277]
[1758210299748,2.0385085,117520.0,117510.0,0.001]
[1758210300349,2.0385085,117520.0,117510.0,0.02406]
[1758210300948,2.46108286,117520.0,117510.0,0.001]
[1758210301147,2.0385085,117520.0,117510.0,0.001]
[1758210301746,2.46108286,117520.0,117510.0,0.001]
[1758210302339,2.46108286,117520.0,117510.0,0.02406]
[1758210302950,2.0385085,117520.0,117510.0,0.001]
[1758210303150,2.46108286,117520.0,117510.0,0.001]
[1758210303445,2.0385085,117520.0,117510.0,0.001]
[1758210303845,2.0385085,117520.0,117510.0,0.02406]
[1758210304151,2.0385085,117520.0,117510.0,0.001]
[1758210304351,2.0385085,117520.0,117510.0,0.02406]
[1758210305447,2.0384685,117520.0,117510.0,0.02406]
[1758210305642,0.38225,117520.0,117510.0,0.70933436]
[1758210306046,0.44402436,117520.0,117510.0,0.70933436]
[1758210306448,0.00024,117530.0,117520.0,0.0127]
[1758210306653,0.80665436,117530.0,117520.0,0.03576]
[1758210307555,0.80665436,117530.0,117520.0,0.45833436]
[1758210307755,0.80665436,117530.0,117520.0,0.03576]
[1758210308254,0.80765436,117530.0,117520.0,0.03576]
[1758210308654,1.23022872,117530.0,117520.0,0.03576]
[1758210308851,0.80765436,117530.0,117520.0,0.03576]
[1758210310555,1.23022872,117530.0,117520.0,0.03576]
[1758210313960,1.24049872,117530.0,117520.0,0.02306]
[1758210314562,1.24049872,117530.0,117520.0,0.03576]
[1758210314762,1.23022872,117530.0,117520.0,0.03576]
[1758210316966,0.38508,117530.0,117520.0,0.03576]
[1758210317165,0.80765436,117530.0,117520.0,0.03576]
[1758210318760,0.38508,117530.0,117520.0,0.03576]
[1758210318965,0.80765436,117530.0,117520.0,0.45833436]
[1758210319160,0.80765436,117530.0,117520.0,0.03576]
[1758210319867,1.24049872,117530.0,117520.0,0.02306]
[1758210320056,1.24049872,117530.0,117510.0,0.08203813]
[1758210320260,1.66203308,117520.0,117510.0,0.02306]
[1758210320459,1.66203308,117520.0,117500.0,0.01325]
[1758210320659,1.22918872,117510.0,117500.0,0.03631]
[1758210321564,0.80661436,117510.0,117500.0,0.03631]
[1758210322159,0.80661436,117510.0,117500.0,0.03731]
[1758210322963,0.38404,117510.0,117500.0,0.03731]
[1758210323565,0.44581436,117510.0,117500.0,0.45988436]
[1758210323866,0.44581436,117510.0,117500.0,0.46188436]
[1758210324858,0.38424,117520.0,117510.0,0.0127]
[1758210325065,0.80661436,117520.0,117510.0,0.45833436]
[1758210325568,0.80661436,117520.0,117510.0,1.23493436]
[1758210325868,0.80661436,117520.0,117510.0,0.45833436]
[1758210326068,1.22918872,117520.0,117510.0,0.03576]
[1758210326268,1.22918872,117520.0,117510.0,0.8124]
[1758210326661,1.22918872,117520.0,117510.0,0.8134]
[1758210327069,1.22918872,117520.0,117510.0,0.03676]
[1758210328170,1.22918872,117520.0,117510.0,0.10321981]
[1758210330774,1.22918872,117520.0,117510.0,0.12326099]
[1758210333881,0.94732468,117520.0,117510.0,0.12326099]
[1758210334266,0.94732468,117520.0,117510.0,0.10321981]
[1758210334472,0.94732468,117520.0,117510.0,0.1231951]
[1758210337882,0.94732468,117520.0,117510.0,0.10321981]
[1758210338880,0.38404,117520.0,117510.0,0.10321981]
[1758210339379,0.94732468,117520.0,117510.0,0.10321981]
[1758210340473,0.30488234,117520.0,117510.0,0.10321981]
[1758210342877,0.30488234,117520.0,117510.0,0.38486215]
[1758210343277,0.30488234,117520.0,117510.0,0.10321981]
[1758210344787,0.30488234,117520.0,117510.0,0.87973981]
[1758210345082,0.30488234,117520.0,117510.0,0.8998012]
[1758210346084,0.30488234,117520.0,117510.0,0.1232812]
[1758210346888,0.58652468,117520.0,117510.0,0.8998012]
[1758210347386,0.58652468,117520.0,117510.0,0.1232812]
[1758210347582,0.58652468,117520.0,117510.0,0.8998012]
[1758210347787,0.94732468,117520.0,117510.0,0.1232812]
[1758210347988,0.94732468,117520.0,117510.0,0.8998012]
[1758210348292,0.94732468,117520.0,117510.0,0.1232812]
[1758210348489,0.94732468,117520.0,117510.0,0.8998012]
[1758210349686,1.19732468,117520.0,117510.0,0.1105812]
[1758210349892,1.20759468,117520.0,117510.0,0.0875212]
[1758210350088,1.20759468,117520.0,117510.0,0.1103112]
[1758210351092,0.84679468,117520.0,117510.0,0.1103112]
[1758210352188,0.83652468,117520.0,117510.0,0.1235512]
[1758210356394,0.55488234,117520.0,117510.0,0.1235512]
[1758210357687,0.83652468,117520.0,117510.0,0.1103112]
[1758210357892,0.84679468,117520.0,117510.0,0.8640412]
[1758210359295,0.84679468,117520.0,117510.0,0.8867912]
[1758210359895,0.84679468,117520.0,117510.0,0.1102712]
[1758210360290,0.84679468,117520.0,117510.0,0.0875212]
[1758210360496,1.20759468,117520.0,117510.0,0.0875212]
[1758210363396,1.73411468,117520.0,117510.0,0.001]
[1758210363600,0.95759468,117520.0,117510.0,0.001]
[1758210363896,1.73411468,117520.0,117510.0,0.001]
[1758210364095,0.95759468,117520.0,117510.0,0.001]
[1758210364287,1.73411468,117520.0,117510.0,0.001]
[1758210364894,1.75824507,117520.0,117510.0,0.001]
[1758210365394,2.03988741,117520.0,117510.0,0.001]
[1758210365992,1.75824507,117520.0,117510.0,0.001]
[1758210367291,0.98172507,117520.0,117510.0,0.001]
[1758210367487,0.98172507,117520.0,117510.0,0.02399]
[1758210367697,0.58652468,117520.0,117510.0,0.03678]
[1758210368287,0.95759468,117520.0,117510.0,0.02399]
[1758210368994,0.38404,117520.0,117510.0,0.03678]
[1758210369298,0.66568234,117520.0,117510.0,0.03678]
[1758210369696,0.30488234,117520.0,117510.0,0.03678]
[1758210369996,0.30488234,117520.0,117510.0,0.10506342]
[1758210370395,0.02324,117520.0,117510.0,0.10506342]
[1758210370593,0.30488234,117520.0,117510.0,0.10506342]
[1758210370790,0.02324,117520.0,117510.0,1.41322576]
[1758210370993,0.38368,117530.0,117520.0,0.03578]
[1758210371298,0.66512234,117530.0,117520.0,0.31742234]
[1758210371686,0.02268,117530.0,117520.0,0.67822234]
[1758210371893,0.02268,117530.0,117520.0,0.94841808]
[1758210372088,4e-05,117530.0,117520.0,1.23006042]
[1758210372796,0.00104,117530.0,117520.0,1.23006042]
[1758210374297,0.00104,117530.0,117520.0,1.44325574]
[1758210374504,0.00104,117530.0,117520.0,1.72489808]
[1758210375198,0.00104,117530.0,117520.0,0.94841808]
[1758210375399,0.00104,117530.0,117520.0,1.72489808]
[1758210375904,0.00104,117530.0,117520.0,2.00654042]
[1758210376794,0.00104,117530.0,117520.0,2.37323206]
[1758210376998,0.00104,117530.0,117520.0,2.55105206]
[1758210377405,0.00104,117530.0,117520.0,2.26940972]
[1758210377806,0.00104,117530.0,117520.0,1.40788042]
[1758210378006,0.00104,117530.0,117520.0,2.18432042]
[1758210378195,0.00104,117530.0,117520.0,1.40788042]
[1758210378600,0.00104,117530.0,117520.0,2.18432042]
[1758210378800,0.00104,117530.0,117520.0,1.40788042]
[1758210379407,0.00104,117530.0,117520.0,2.18432042]
[1758210379610,0.00104,117530.0,117520.0,1.40788042]
[1758210379909,0.00104,117530.0,117520.0,0.84459574]
[1758210380109,0.00104,117530.0,117520.0,1.40788042]
[1758210380306,0.00104,117530.0,117520.0,2.18428042]
[1758210381212,0.00104,117530.0,117520.0,1.40788042]
[1758210381402,0.00104,117530.0,117520.0,2.18428042]
[1758210382703,0.00104,117530.0,117520.0,1.40788042]
[1758210382910,0.00104,117530.0,117520.0,2.18424042]
[1758210385199,0.00104,117530.0,117520.0,2.26928982]
[1758210385406,0.0002,117540.0,117530.0,0.01279]
[1758210385607,0.02288,117550.0,117540.0,0.01279]
[1758210385814,0.02268,117550.0,117540.0,1.47443427]
[1758210386013,0.02268,117550.0,117540.0,1.75607661]
[1758210386515,0.02268,117550.0,117540.0,1.19279193]
[1758210386716,0.02268,117550.0,117540.0,1.47443427]
[1758210387414,0.00304,117550.0,117540.0,1.47443427]
[1758210387616,0.00304,117550.0,117540.0,1.75607661]
[1758210388116,0.00504,117550.0,117540.0,1.75607661]
[1758210391115,0.02768,117550.0,117540.0,0.97971661]
[1758210391306,0.02768,117550.0,117540.0,1.19271193]
[1758210391509,0.02768,117550.0,117540.0,1.47435427]
[1758210392113,0.02768,117550.0,117540.0,1.48272064]
[1758210392513,0.02768,117550.0,117540.0,0.70644064]
[1758210392716,0.02768,117550.0,117540.0,1.48272064]
[1758210393817,0.44981089,117550.0,117540.0,1.2010783]
[1758210394016,0.44981089,117550.0,117540.0,2.04534008]
[1758210394205,0.02768,117550.0,117540.0,2.04534008]
[1758210394411,0.00504,117550.0,117540.0,2.04534008]
[1758210394707,0.00498,117550.0,117540.0,2.46747097]
[1758210394913,0.00498,117550.0,117540.0,2.64529097]
[1758210395312,0.00498,117550.0,117540.0,2.89529097]
[1758210395510,0.00498,117550.0,117540.0,2.47316008]
[1758210395712,0.00498,117550.0,117540.0,2.89529097]
[1758210395910,0.00498,117550.0,117540.0,2.47316008]
[1758210396511,0.00498,117550.0,117540.0,2.89529097]
[1758210396715,0.003,117550.0,117540.0,2.89529097]
[1758210397017,0.001,117550.0,117540.0,2.98032567]
[1758210397914,0.0002,117560.0,117540.0,2.98032567]
[1758210398114,0.0002,117560.0,117550.0,0.81850089]
[1758210398315,0.00024,117570.0,117560.0,0.03557]
[1758210398518,4e-05,117570.0,117560.0,2.01683178]
[1758210398715,4e-05,117570.0,117560.0,1.24063178]
[1758210398915,4e-05,117570.0,117560.0,2.01683178]
[1758210399512,0.00204,117570.0,117560.0,1.24063178]
[1758210399714,0.00204,117570.0,117560.0,2.01683178]
[1758210401118,0.00304,117570.0,117560.0,2.01683178]
[1758210402222,0.00304,117570.0,117560.0,1.24063178]
[1758210402518,0.00304,117570.0,117560.0,1.30731498]
[1758210402720,0.00304,117570.0,117560.0,2.08347498]
[1758210403725,0.00304,117570.0,117560.0,1.30731498]
[1758210403925,0.00304,117570.0,117560.0,2.08343498]
[1758210404910,0.00304,117570.0,117560.0,1.30731498]
[1758210405119,0.00304,117570.0,117560.0,2.08343498]
[1758210407022,0.00304,117570.0,117560.0,1.30731498]
[1758210407321,0.44696089,117570.0,117560.0,0.4630532]
[1758210407517,0.69696089,117570.0,117560.0,0.88518409]
[1758210407821,0.69696089,117570.0,117560.0,1.66126409]
[1758210412125,0.69696089,117570.0,117560.0,2.08339498]
[1758210412526,0.69696089,117570.0,117560.0,1.2391332]
[1758210412726,0.69696089,117570.0,117560.0,2.08339498]
[1758210413926,0.69696089,117570.0,117560.0,2.08335498]
[1758210415126,0.69696089,117570.0,117560.0,1.66122409]
[1758210416629,0.69696089,117570.0,117560.0,2.08335498]
[1758210416835,0.27483,117570.0,117560.0,2.08335498]
[1758210417333,0.69696089,117570.0,117560.0,2.08335498]
[1758210417831,0.69696089,117570.0,117560.0,0.4630532]
[1758210418128,1.06803089,117570.0,117560.0,0.8645732]
[1758210419527,1.49016178,117570.0,117560.0,0.0885332]
[1758210419726,1.49016178,117570.0,117560.0,0.8645332]
[1758210420429,1.51419835,117570.0,117560.0,0.8645332]
[1758210420630,1.51419835,117570.0,117560.0,0.8426832]
[1758210420832,1.51419835,117570.0,117560.0,0.0878732]
[1758210421130,1.51419835,117570.0,117560.0,0.776]
[1758210421326,1.49016178,117570.0,117560.0,0.776]
[1758210421926,0.02197,117550.0,117540.0,0.2400183]
[1758210422231,0.87750178,117550.0,117540.0,0.78438611]
[1758210422428,1.12750178,117550.0,117540.0,0.80557611]
[1758210422629,0.70537089,117550.0,117540.0,0.80557611]
[1758210423334,0.70537089,117550.0,117540.0,0.80761611]
[1758210423724,0.70537089,117550.0,117540.0,0.79923]
[1758210423926,1.12750178,117550.0,117540.0,0.02319]
[1758210424121,1.48830178,117550.0,117540.0,0.77804]
[1758210424329,1.23830178,117550.0,117540.0,0.77804]
[1758210424530,1.23830178,117550.0,117540.0,0.79923]
[1758210424726,1.23830178,117550.0,117540.0,0.002]
[1758210424922,1.23830178,117550.0,117540.0,0.77804]
[1758210425533,1.23830178,117550.0,117540.0,0.79923]
[1758210426030,0.39404,117550.0,117540.0,0.79923]
[1758210426232,1.23830178,117550.0,117540.0,0.79923]
[1758210427232,1.23830178,117550.0,117540.0,0.77804]
[1758210427628,1.48830178,117550.0,117540.0,0.77808]
[1758210427827,1.48830178,117550.0,117540.0,0.002]
[1758210428029,0.64404,117550.0,117540.0,0.02319]
[1758210428236,1.06617089,117550.0,117540.0,0.002]
[1758210428832,0.64404,117550.0,117540.0,0.002]
[1758210429137,1.06617089,117550.0,117540.0,0.002]
[1758210430237,1.48830178,117550.0,117540.0,0.002]
[1758210430738,1.12750178,117550.0,117540.0,0.002]
[1758210430938,1.48830178,117550.0,117540.0,0.002]
[1758210432732,1.48830178,117550.0,117540.0,0.02319]
[1758210433127,1.06617089,117550.0,117540.0,0.002]
[1758210433633,1.06617089,117550.0,117540.0,0.02319]
[1758210436637,1.48830178,117550.0,117540.0,0.02319]
[1758210437538,1.48830178,117550.0,117540.0,0.002]
[1758210440645,1.48830178,117550.0,117540.0,0.02319]
[1758210441947,1.48830178,117550.0,117540.0,0.002]
[1758210443149,1.48830178,117550.0,117540.0,0.02319]
[1758210444850,1.48830178,117550.0,117540.0,0.03661]
[1758210445051,0.38277,117550.0,117540.0,0.45874089]
[1758210445248,0.80490089,117550.0,117540.0,0.45874089]
[1758210445949,0.80490089,117550.0,117540.0,0.03661]
[1758210446149,0.81617089,117550.0,117540.0,0.03661]
[1758210446546,0.81617089,117550.0,117540.0,0.02319]
[1758210447247,1.23830178,117550.0,117540.0,0.02319]
[1758210449860,1.23830178,117550.0,117540.0,0.02319]
[1758210451047,1.2624038,117550.0,117540.0,0.02319]
[1758210453756,0.6996311,117550.0,117540.0,0.02319]
[1758210454647,0.6996311,117550.0,117540.0,0.03656]
[1758210456350,0.6996311,117550.0,117540.0,0.02319]
[1758210459256,0.41814202,117550.0,117540.0,0.02319]
[1758210459464,0.6996311,117550.0,117540.0,0.02319]
[1758210462460,0.41814202,117550.0,117540.0,0.03656]
[1758210462663,0.04607202,117550.0,117540.0,1.21033816]
[1758210462859,0.02197,117550.0,117540.0,1.21033816]
[1758210463261,0.02197,117550.0,117540.0,0.92884908]
[1758210467367,0.30345908,117550.0,117540.0,1.70500908]
[1758210469071,0.02197,117550.0,117540.0,1.70500908]
[1758210469364,0.64248908,117560.0,117550.0,0.01337]
[1758210469566,0.66410908,117560.0,117550.0,0.31748908]
[1758210469766,0.66410908,117560.0,117550.0,1.09364908]
[1758210470271,0.66410908,117560.0,117550.0,0.036]
[1758210470771,0.66410908,117560.0,117550.0,0.81212]
[1758210470965,0.94559816,117560.0,117550.0,0.81212]
[1758210472566,0.66410908,117560.0,117550.0,0.81212]
[1758210473360,0.66410908,117560.0,117550.0,0.036]
[1758210473668,0.94559816,117560.0,117550.0,0.036]
[1758210474265,0.94559816,117560.0,117550.0,0.81212]
[1758210475468,0.94559816,117560.0,117550.0,0.036]
[1758210475672,0.95686816,117560.0,117550.0,0.79871]
[1758210475971,0.95686816,117560.0,117550.0,0.02263]
[1758210476171,0.95686816,117560.0,117550.0,0.79871]
[1758210476964,0.95686816,117560.0,117550.0,0.81202]
[1758210479168,0.38262,117560.0,117550.0,0.81202]
[1758210479468,0.94559816,117560.0,117550.0,0.81202]
[1758210479665,0.95686816,117560.0,117550.0,0.81202]
[1758210480872,0.95686816,117560.0,117550.0,0.81302]
[1758210481175,0.94559816,117560.0,117550.0,0.81302]
[1758210481369,0.94559816,117560.0,117550.0,0.81402]
[1758210481567,0.38262,117560.0,117550.0,0.81402]
[1758210481768,0.94559816,117560.0,117550.0,0.81402]
[1758210482170,0.66410908,117560.0,117550.0,0.81402]
[1758210483268,0.94559816,117560.0,117550.0,0.81402]
[1758210483469,0.38262,117560.0,117550.0,0.81402]
[1758210483677,0.94559816,117560.0,117550.0,0.81402]
[1758210484580,0.66410908,117560.0,117550.0,0.81402]
[1758210486578,0.66410908,117560.0,117550.0,0.03794]
[1758210486780,0.66410908,117560.0,117550.0,0.81394]
[1758210487680,0.94559816,117560.0,117550.0,0.81394]
[1758210488580,0.38262,117560.0,117550.0,0.81394]
[1758210488782,0.94559816,117560.0,117550.0,0.81394]
[1758210489474,0.30330908,117560.0,117550.0,0.81394]
[1758210490177,0.30330908,117560.0,117550.0,0.03794]
[1758210490372,0.30330908,117560.0,117550.0,0.81394]
[1758210490577,0.58479816,117560.0,117550.0,0.81394]
[1758210492070,0.58479816,117560.0,117550.0,0.03794]
[1758210492275,0.58479816,117560.0,117550.0,0.81394]
[1758210494684,0.02182,117560.0,117550.0,0.81394]
[1758210495083,0.58479816,117560.0,117550.0,0.81394]
[1758210496489,0.58479816,117560.0,117550.0,0.8139]
[1758210496676,0.58479816,117560.0,117550.0,0.03794]
[1758210496881,0.59606816,117560.0,117550.0,0.02463]
[1758210497081,0.59606816,117560.0,117550.0,0.80059]
[1758210497586,0.58479816,117560.0,117550.0,0.81364]
[1758210498387,0.94559816,117560.0,117550.0,0.03768]
[1758210498587,0.95686816,117560.0,117550.0,0.002]
[1758210498783,0.95686816,117560.0,117550.0,0.02521]
[1758210499985,0.98090666,117560.0,117550.0,0.02521]
[1758210500383,0.95686816,117560.0,117550.0,0.02521]
[1758210506491,0.59606816,117560.0,117550.0,0.03826]
[1758210506678,0.30330908,117560.0,117550.0,0.68054908]
[1758210506879,0.02182,117560.0,117550.0,0.93054908]
[1758210507089,0.02152,117570.0,117560.0,0.03626]
[1758210507290,0.02132,117570.0,117560.0,1.09370908]
[1758210508190,0.30280908,117570.0,117560.0,1.09370908]
[1758210509791,0.30280908,117570.0,117560.0,0.81222]
[1758210510789,0.30280908,117570.0,117560.0,0.87937252]
[1758210511093,0.31407908,117570.0,117560.0,0.86628252]
[1758210513788,0.87678148,117570.0,117560.0,0.86628252]
[1758210514391,0.87678148,117570.0,117560.0,0.88013252]
[1758210516594,0.87678148,117570.0,117560.0,0.10421252]
[1758210516792,0.87678148,117570.0,117560.0,0.88009252]
[1758210519888,0.44341574,117570.0,117560.0,0.88009252]
[1758210520990,0.86551148,117570.0,117560.0,0.88009252]
[1758210523188,1.22631148,117570.0,117560.0,0.88009252]
[1758210526491,1.22631148,117570.0,117560.0,0.10421252]
[1758210526690,1.22631148,117570.0,117560.0,0.88005252]
[1758210527492,0.38212,117570.0,117560.0,0.88005252]
[1758210527692,1.22631148,117570.0,117560.0,0.10421252]
[1758210527896,1.22631148,117570.0,117560.0,0.88005252]
[1758210529590,0.80421574,117570.0,117560.0,0.88005252]
[1758210530101,1.22631148,117570.0,117560.0,0.88005252]
[1758210533295,0.80421574,117570.0,117560.0,1.30214826]
[1758210533900,0.80421574,117570.0,117560.0,0.88005252]
[1758210534202,0.80421574,117570.0,117560.0,1.30214826]
[1758210534593,0.80421574,117570.0,117560.0,0.88005252]
[1758210535195,0.80421574,117570.0,117560.0,1.30214826]
[1758210537303,0.80421574,117570.0,117560.0,0.88005252]
[1758210537504,0.80421574,117570.0,117560.0,1.30214826]
[1758210538112,0.80421574,117570.0,117560.0,0.10421252]
[1758210538511,0.80421574,117570.0,117560.0,0.89966023]
[1758210538811,0.80421574,117570.0,117560.0,1.32175597]
[1758210539214,0.38212,117570.0,117560.0,1.32175597]
[1758210539417,0.80421574,117570.0,117560.0,1.32175597]
[1758210540304,0.38212,117570.0,117560.0,1.99385171]
[1758210540507,4e-05,117570.0,117560.0,2.35465171]
[1758210540918,4e-05,117570.0,117560.0,1.57889171]
[1758210541118,4e-05,117570.0,117560.0,2.35465171]
[1758210544722,4e-05,117570.0,117560.0,2.53247171]
[1758210544914,4e-05,117570.0,117560.0,1.75671171]
[1758210545116,4e-05,117570.0,117560.0,2.53243171]
[1758210546321,4e-05,117570.0,117560.0,2.53343171]
[1758210547326,4e-05,117570.0,117560.0,2.53443171]
[1758210549229,4e-05,117570.0,117560.0,2.53439171]
[1758210550623,4e-05,117570.0,117560.0,2.95648745]
[1758210550824,0.00024,117580.0,117570.0,0.03389]
[1758210551131,4e-05,117580.0,117570.0,1.23888148]
[1758210551319,4e-05,117580.0,117570.0,1.50171458]
[1758210552028,4e-05,117580.0,117570.0,2.19338148]
[1758210552220,4e-05,117580.0,117570.0,2.15949148]
[1758210553627,4e-05,117580.0,117570.0,1.63381148]
[1758210553926,4e-05,117580.0,117570.0,1.63481148]
[1758210554132,4e-05,117580.0,117570.0,2.41045148]
[1758210554529,4e-05,117580.0,117570.0,1.56626]
[1758210554731,4e-05,117580.0,117570.0,2.41045148]
[1758210555529,4e-05,117580.0,117570.0,1.63481148]
[1758210555730,4e-05,117580.0,117570.0,2.41041148]
[1758210556428,4e-05,117580.0,117570.0,1.63481148]
[1758210556629,4e-05,117580.0,117570.0,2.41041148]
[1758210556830,4e-05,117580.0,117570.0,1.63481148]
[1758210557130,4e-05,117580.0,117570.0,2.49542458]
[1758210557331,4e-05,117580.0,117570.0,1.64767148]
[1758210557724,4e-05,117580.0,117570.0,2.42323148]
[1758210559033,4e-05,117580.0,117570.0,1.64767148]
[1758210559233,4e-05,117580.0,117570.0,2.42323148]
[1758210559924,4e-05,117580.0,117570.0,2.50824478]
[1758210561229,4e-05,117580.0,117570.0,2.42319148]
[1758210562127,4e-05,117580.0,117570.0,2.68030042]
[1758210562326,0.0002,117590.0,117580.0,0.118896]
[1758210562533,0.00024,117600.0,117590.0,0.03389]
[1758210562732,4e-05,117600.0,117590.0,2.01440148]
[1758210562933,4e-05,117600.0,117590.0,2.19222148]
[1758210565037,4e-05,117600.0,117590.0,1.41670148]
[1758210565241,4e-05,117600.0,117590.0,2.19318148]
[1758210566640,4e-05,117600.0,117590.0,2.63474148]
[1758210566833,4e-05,117600.0,117590.0,2.21264574]
[1758210567030,4e-05,117600.0,117590.0,2.63474148]
[1758210567940,4e-05,117600.0,117590.0,2.71974018]
[1758210568241,4e-05,117600.0,117590.0,1.52216444]
[1758210568433,4e-05,117600.0,117590.0,2.29756444]
[1758210568832,0.00016,117610.0,117600.0,0.2967015]
[1758210569039,6e-05,117610.0,117600.0,2.69918872]
[1758210569240,0.00014,117620.0,117600.0,2.69918872]
[1758210569431,0.00014,117620.0,117610.0,1.23888148]
[1758210569638,4e-05,117620.0,117610.0,1.23888148]
[1758210569837,4e-05,117620.0,117610.0,2.01428148]
[1758210570239,4e-05,117620.0,117610.0,2.01424148]
[1758210570434,4e-05,117620.0,117610.0,2.09922578]
[1758210570639,4e-05,117620.0,117610.0,2.10754297]
[1758210570943,0.0001,117630.0,117620.0,0.21373]
[1758210571137,0.00014,117640.0,117630.0,0.03595]
[1758210571441,4e-05,117640.0,117630.0,0.81884574]
[1758210571838,4e-05,117640.0,117630.0,1.24094148]